{"text_format":"1","workbook":"xlsx","n_sheets":1,"sheets":["conceptos"],"not_rendered":{"charts":0,"images":2,"macros":1,"external_links":0,"defined_names":1,"comments":0,"pivot_tables":0},"unopened":[],"bounds":{"document_bytes":16777216,"sheet_cells":100000,"rows_first":2000,"rows_last":500,"rows_between":2000,"halvings":0,"cell_chars":16384,"cell_head_chars":4096},"cells_cut":0,"cells_raw":0,"read":"whole","date_system":"1900"}

{"sheet":"conceptos","index":0,"n_rows":146,"n_cols":8,"rows_kept":146,"cut":false,"hidden":false,"merged":[[143,0,143,4],[144,0,145,4],[13,0,13,6],[0,2,0,5],[9,2,9,5],[1,2,3,5],[4,2,4,3],[6,2,6,3],[7,2,7,3],[4,4,4,5],[5,4,5,5],[6,4,6,5],[7,4,7,5],[10,2,10,5],[11,2,11,5],[5,1,8,1]]}
[null,"GOBIERNO DEL ESTADO DE JALISCO","LICITACIÓN PÚBLICA ESTATAL"]
[null,"INSTITUTO DE LA INFRAESTRUCTURA FÍSICA EDUCATIVA DEL","INFEJAL-E-FAM-B-REH-06279-LP-0226-2020"]
[null,"ESTADO DE JALISCO"]
[]
[null,"DESCRIPCIÓN GENERAL DE LOS TRABAJOS:","FECHA DE INICIO:"]
[null,null,null,"FECHA DE TERMINACIÓN:"]
[null,null,"PLAZO DE EJECUCIÓN:"]
[null,null,"FECHA:"]
[]
[null,"RAZÓN SOCIAL DEL LICITANTE:","NOMBRE, CARGO Y FIRMA DEL LICITANTE:",null,null,null,"DOCUMENTO"]
[]
[]
[]
["PRESUPUESTO DE OBRA"]
[]
["CLAVE","DESCRIPCIÓN","UNIDAD","CANTIDAD","PRECIO UNITARIO ($)","PRECIO UNITARIO ($) CON LETRA","IMPORTE ($) M.N."]
["TRABAJO : BAS-REH-06279","REHABILITACIÓN GENERAL DE INSTALACIONES ELÉCTRICAS Y SUBESTACIÓN ELÉCTRICA EN LA ESCUELA SECUNDARIA PONCIANO ARRIAGA CCT 14DES0043R, UBICADA EN LA LOCALIDAD SANTA ANITA, MUNICIPIO DE SAN PEDRO TLAQUEPAQUE, JALISCO.",null,null,null,null,{"$f":"TEXT(SUM(G18 + G61 + G73 + G123), \"$ #,##0.00 ;\")","v":"$ 0.00 "}]
["EDFS","EDIFICIOS",null,null,null,null,{"$f":"TEXT(SUM(G19 + G26 + G28 + G54 + G56 + G59), \"$ #,##0.00 ;\")","v":"$ 0.00 "}]
["EDFS.01(140)","DEMOLICIONES, DESMONTAJES Y MECANICA DE SUELOS    ",null,null,null,null,{"$f":"TEXT(SUM(G20:G25), \"$ #,##0.00 ;\")","v":"$ 0.00 "}]
[140100,"DESMONTAJE, RETIRO Y DESCONECCION DE TABLERO DE CONTROL Y/O CENTRO DE CARGA SIN RECUPERACION, (NO UTILISABLE), INCLUYE: DESCONEXION, HERRAMIENTA, MANO DE OBRA CALIFICADA, LIMPIEZA Y ACARREOS DE MATERIALES DE RETIRO FUERA DE LA OBRA.","PZA","8.0000",0,"CERO PESOS 00/100 M.N.",0,334584]
[140247,"DESCONEXION Y DESINSTALACION DE ALIMENTADORES ELECTRICOS EXISTENTES EN SALIDAS ELECTRICAS DE ALUMBRADO, APAGADORES Y/O CONTACTOS, CON RECUPERACION, INCLUYE: DESCONEXIONES, RETIRO Y ACARREOS EN EL INTERIOR DEL PLANTEL DEL CABLEADO PRODUCTO DE LA DESINSTALACION, GUIAS,  ANDAMIOS, HERRAMIENTA, MANO DE OBRA CALIFICADA Y LIMPIEZA DEL AREA DE TRABAJO. EN CUALQUIER NIVEL","SAL","50.0000",0,"CERO PESOS 00/100 M.N.",0,334585]
[140273,"DESINSTALACION Y RETIRO DE INTERRUPTORES TERMO MAGNETICOS DE TABLEROS EN MAL ESTADO, SIN RECUPERACION, INCLUYE: DESCONEXION, DESMONTAJE, HERRAMIENTA, MANO DE OBRA CALIFICADA, LIMPIEZA Y ACARREOS DE MATERIALES DE RETIRO FUERA DE LA OBRA.","PZA","30.0000",0,"CERO PESOS 00/100 M.N.",0,334586]
[412001,"PUNTOS DE SOLDADURA EN ELEMENTOS DE ACERO Y HERRERIA, INCLUYE: HERRAMIENTAS, EQUIPO, MATERIALES, Y ,MANO DE OBRA.","PZA","68.0000",0,"CERO PESOS 00/100 M.N.",0,334587]
[907172,"PERFORACION Y RESANE DE MUROS Y/O TECHOS PARA PASO DE TUBERIA DE 1/2\" A 2 1/2\" DE DIAMETRO, CON MORTERO CEMENTO-ARENA DE RIO EN PROP. 1:4,, CON ACABADO IGUAL AL EXISTENTE,  INCLUYE: TRAZO, HERRAMIENTAS, MATERIALES,  MANO DE OBRA, RETIRO Y ACARREO DE MATERIALES DE DESHECHO DENTRO Y FUERA DE LA OBRA ATIRADERO AUTORIZADO Y LIMPIEZA DEL AREA DE LOS TRABAJOS.","PZA","5.0000",0,"CERO PESOS 00/100 M.N.",0,334588]
[929600,"DESMONTAJE DE LAMPARA EXISTENTE A CUALQUIER NIVEL. INCLUYE; DESCONEXION, GABINETE, BALASTRA, DESINSTALACION DE MATERIAL DE FIJACION, HERRAMIENTA, MANO DE OBRA, ACARREO DE MATERIAL PRODUCTO DE DESINSTALACION A LUGAR INDICADO POR SUPERVISION Y  LIMPIEZA DEL AREA DE TRABAJO","PZA","50.0000",0,"CERO PESOS 00/100 M.N.",0,334589]
["EDFS.02(355)","RECUBRIMIENTOS Y ACABADOS                         ",null,null,null,null,{"$f":"TEXT(SUM(G27:G27), \"$ #,##0.00 ;\")","v":"$ 0.00 "}]
[934966,"RESANE EN MUROS CON MORTERO CEMENTO-CAL-ARENA 1:2:6, DE 2 CMS. DE ESPESOR POR HASTA 20 CMS. DE ANCHO, EN APLANADO EXISTENTE. INCLUYE: ANDAMIOS, HERRAMIENTAS, MATERIALES, MANO DE OBRA Y ACARREOS.","ML ","50.0000",0,"CERO PESOS 00/100 M.N.",0,334590]
["EDFS.03(510)","INSTALACION ELECTRICA EN EDIFICIO                 ",null,null,null,null,{"$f":"TEXT(SUM(G29:G53), \"$ #,##0.00 ;\")","v":"$ 0.00 "}]
[514011,"SALIDA ELECTRICA DE CENTRO AISLADA, VISIBLE, CON TUBERIA Y CONEXIONES CONDUIT GALVANIZADA P.G., ROSCADA DE 13 Y 19 MM. DE DIAMETRO, CABLE VINANEL THW-LS 600 V. A 75° C, 90° C, MARCA CONDUCTORES MONTERREY, (VIAKON-PROTOCOLIZADO), CABLE VINANEL 21 THW-LS 600 V. A 75° C, 90° C, MARCA CONDUMEX (CONDUMEX PROTOCOLIZADO).  CALIBRE 12, CAJAS CUADRADAS, CHALUPAS Y TAPAS GALVANIZADAS, INCLUYE: TRAZO, MATERIALES MENORES Y DE FIJACION, HERRAMIENTA, MANO DE OBRA ESPECIALIZADA , CONEXIONES, LIMPIEZA DEL AREA DE TRABAJO, PRUEBAS, DESPERDICIOS Y ACARREO DEL MATERIAL AL SITIO DE SU COLOCACION, A CUALQUIER NIVEL.","SAL","50.0000",0,"CERO PESOS 00/100 M.N.",0,334591]
[516018,"SALIDA ELECTRICA DE FUERZA PARA VENTILADOR DE TECHO, VISIBLE, CON TUBERIA Y CONEXIONES CONDUIT GALVANIZADA PARED DELGADA DE AJUSTE ETIQUETA VERDE DE 13 Y 19 MM. DE DIAMETRO, CABLE VINANEL THW-LS 600 V. A 75° C, 90° C, MARCA CONDUCTORES MONTERREY, (VIAKON-PROTOCOLIZADO), CABLE VINANEL 21 THW-LS 600 V. A 75° C, 90° C, MARCA CONDUMEX (CONDUMEX PROTOCOLIZADO).  CALIBRE, 12  Y 14, CON TAPA, INCLUYE: TRAZO,  MATERIALES MENORES Y DE CONSUMO, ELEMENTOS DE FIJACION,  HERRAMIENTA, ANDAMIOS, CONEXIONES, MANO DE OBRA ESPECIALIZADA, LIMPIEZA DEL AREA DE TRABAJO, PRUEBAS, DESPERDICIOS Y ACARREO DEL MATERIAL AL SITIO DE SU COLOCACION, A CUALQUIER ALTURA.","SAL","10.0000",0,"CERO PESOS 00/100 M.N.",0,334592]
[518125,"SALIDA ELECTRICA PARA CONTACTO DUPLEX POLARIZADO, VISIBLE CON TUBERIA Y CONEXIONES CONDUIT GALVANIZADA P.G. ETIQUETA VERDE DE AJUSTE DE 13 Y 19 MM. DE DIAMETRO CABLE VINANEL THW-LS 600 V. A 75° C, 90° C, MARCA CONDUCTORES MONTERREY, (VIAKON-PROTOCOLIZADO), CABLE VINANEL 21 THW-LS 600 V. A 75° C, 90° C, MARCA CONDUMEX (CONDUMEX PROTOCOLIZADO) CALIBRE CAL. 12 EN FASES Y CAL. 12 PARA TIERRA FISICA, CAJAS DE REGISTRO CUADRADAS, CHALUPAS Y TAPAS DE ACERO GALVANIZADO TIPO REFORZADO, CONTACTO QUINZIÑO MX, TAPA DE ALUMINIO, INCLUYE: TRAZO, CONEXIONES A TIERRA, MATERIALES MENORES, PRUEBAS, DESPERDICIOS, LIMPIEZA, HERRAMIENTAS, MANO DE OBRA Y ACARREO DEL MATERIAL AL SITIO DE SU COLOCACION A CUALQUIER NIVEL.","SAL","50.0000",0,"CERO PESOS 00/100 M.N.",0,334593]
[518211,"SUMINISTRO Y COLOCACION DE CONDULET LB, LF, T, TB O LR, DE 2\" DE DIAM., OVALADO, MARCA C. HINDS, INCLUYE: TAPA Y EMPAQUE DE NEOPRENO, SOPORTE, FIJACION, ALINEACION, MATERIALES MENORES, MANO DE OBRA ESPECIALIZADA, HERRAMIENTA, PRUEBAS, FLETES Y ACARREO DE LOS MATERIALES AL SITIO DE SU UTILIZACION.","PZA","6.0000",0,"CERO PESOS 00/100 M.N.",0,334594]
[522063,"SALIDA ELECTRICA DE APAGADOR SENCILLO, VISIBLE, CON TUBERIA Y CONEXIONES CONDUIT GALVANIZADA PARED DELGADA DE AJUSTE, ETIQUETA VERDE, DE 13 Y 19 MM. DE DIAMETRO, CONDULET SERIE OVALADA TIPO \"T\", \"L\" Y \"C\" EN SU TRAYECTORIA Y FS EN LA SALIDA, CABLE VINANEL THW-LS 600 V. A 75° C, 90° C, MARCA CONDUCTORES MONTERREY, (VIAKON-PROTOCOLIZADO), CABLE VINANEL 21 THW-LS 600 V. A 75° C, 90° C, MARCA CONDUMEX (CONDUMEX PROTOCOLIZADO). CALIBRES 12,  ACCESORIOS MCA. BTICINO, LINEA  QUINZIÑO MX,  INCLUYE: TRAZO, CONEXIONES, MATERIALES MENORES Y DE COSNSUMO, ELEMENTOS DE FIJACION, ACCESORIOS, PRUEBAS, DESPERDICIOS, HERRAMIENTAS, ANDAMIOS,  LIMPIEZA, MANO DE OBRA ESPECIALIZADA Y ACARREO DEL MATERIAL AL SITIO DE SU COLOCACION, A CUALQUIER ALTURA.","SAL","50.0000",0,"CERO PESOS 00/100 M.N.",0,334595]
[522423,"SALIDA ELECTRICA PARA  CONTROL DE VENTILADOR, VISIBLE, CON TUBERIA Y CONEXIONES CONDUIT GALVANIZADA PARED DELGADA DE AJUSTE, ETIQUETA VERDE, DE 13 Y 19 MM. DE DIAMETRO,  CABLE VINANEL THW-LS 600 V. A 75° C, 90° C, MARCA CONDUCTORES MONTERREY, (VIAKON-PROTOCOLIZADO), CABLE VINANEL 21 THW-LS 600 V. A 75° C, 90° C, MARCA CONDUMEX (CONDUMEX PROTOCOLIZADO).  CALIBRE 12 Y 14, INCLUYE: CODOS, COPLES, CAJA CUADRADA, DESPERDICIOS, ACCESORIOS, TAPA GALVANIZADA,  CONTROL, TAPA , MATERIALES DE FIJACION, MANO DE OBRA, HERRAMIENTAS, Y ACAREO DE MATERIALES AL SITIO DE SU COLOCACION ACUALQUIER ALTURA.","SAL","10.0000",0,"CERO PESOS 00/100 M.N.",0,334596]
[524521,"SALIDA ELECTRICA DE FUERZA PARA BOMBA, OCULTA,  CON TUBERIA Y CONEXIONES CONDUIT DE PVC. PESADO DE 13 MM. DE DIAMETRO, CABLE VINANEL THW-LS 600 V. A 75° C, 90° C, MARCA CONDUCTORES MONTERREY, (VIAKON-PROTOCOLIZADO), CABLE VINANEL 21 THW-LS 600 V. A 75° C, 90° C, MARCA CONDUMEX (CONDUMEX PROTOCOLIZADO).  CALIBRE 12 EN FASES Y 12 EN TIERRA FISICA, CAJAS DE REGISTRO  CUADRADAS, CHALUPAS Y TAPAS DE PVC REFORZADO, TAPA DE ALUMINIO, INCLUYE: TRAZO, RANURAS, CONEXION A TIERRA, ACCESORIOS, MATERIALES MENORES Y DE CONSUMO, PRUEBAS, DESPERDICIOS Y ACARREO DEL MATERIAL AL SITIO DE SU COLOCACION, A CUALQUIER NIVEL.","SAL","1.0000",0,"CERO PESOS 00/100 M.N.",0,334597]
[532231,"SUM. Y COL. DE CURVA CONDUIT GALVANIZADA DE AJUSTE DE 51 MM. DE DIAMETRO, INCLUYE: MATERIALES MENORES, PRUEBAS, CORTE, AJUSTES, DESPERDICIOS, HERRAMIENTAS, MANO DE OBRA Y ACARREO DE LOS MATERIALES AL SITIO DE SU COLOCACION.","PZA","6.0000",0,"CERO PESOS 00/100 M.N.",0,334598]
[534112,"SUMINISTRO Y COLOCACION DE TUBO CONDUIT GALVANIZADO, DE 51 MM, PARED GRUESA ROSCADA ETIQUETA AMARILLA, INCLUYE: TRAZO, CORTES, AJUSTES, CONECTORES, COPLES, DOBLECES, ROSCADO, DESPERDICIOS, MATERIALES MENORES, HERRAMIENTAS, PRUEBAS, LIMPIEZA, MANO DE OBRA Y ACARREO DE MATERIALES AL SITIO DE SU COLOCACION.","ML ","25.0000",0,"CERO PESOS 00/100 M.N.",0,334599]
[534128,"SUMINISTRO Y COLOCACION DE TUBO CONDUIT GALVANIZADO, DE 51 MM, PARED DELGADA DE AJUSTE ETIQUETA VERDE, INCLUYE: TRAZO, CORTES, AJUSTES, CONECTORES, COPLES, DOBLECES, DESPERDICIOS, MATERIALES MENORES, HERRAMIENTAS, PRUEBAS, LIMPIEZA, MANO DE OBRA Y ACARREO DE MATERIALES AL SITIO DE SU COLOCACION.","ML ","10.0000",0,"CERO PESOS 00/100 M.N.",0,334600]
[540012,"SUMINISTRO Y COLOCACION DE CENTRO DE CARGAS TIPO QOD-2, MCA. SQUARE D, INCLUYE: ELEMENTOS DE FIJACION,  PRUEBAS, MATERIALES MENORES Y DE CONSUMO, CONEXIONES, LIMPIEZAS, HERRAMIENTAS, MANO DE OBRA ESPECIALIZADA Y ACARREO DE MATERIALES AL SITIO DE SU COLOCACION.","PZA","1.0000",0,"CERO PESOS 00/100 M.N.",0,334601]
[543012,"SUMINISTRO Y COLOCACION DE INTERRUPTOR TERMOMAGNETICO DERIVADO CON 1 POLOS, DE 15-60 AMPERES, MCA. SQUARE D, CAT. QO. INCLUYE: PRUEBAS, MATERIALES MENORES, HERRAMIENTAS, MANO DE OBRA ESPECIALIZADA  Y ACARREO DE MATERIALES AL SITIO DE SU COLOCACION.","PZA","40.0000",0,"CERO PESOS 00/100 M.N.",0,334602]
[543018,"SUMINISTRO Y COLOCACION DE INTERRUPTOR TERMOMAGNETICO POWERPACT MARCO \"H\" CON 2 POLOS, DE 15-60 AMPERES, MCA. SQUARE´D, CAT. HDA-26015-60, INCLUYE: MATERIALES MENORES Y DE CONSUMO, CONEXION, PRUEBAS, HERRAMIENTAS, MANO DE OBRA ESPECIALIZADA Y ACARREO DE MATERIALES AL SITIO DE SU COLOCACION.","PZA","1.0000",0,"CERO PESOS 00/100 M.N.",0,334603]
[543020,"SUMINISTRO Y COLOCACION DE INTERRUPTOR TERMOMAGNETICO CON 2 POLOS, DE 15-50 AMPERES, MCA. SQUARE D, CAT. QO. INCLUYE: PRUEBAS, FLETES, MATERIALES MENORES Y ACARREO DE MATERIALES AL SITIO DE SU COLOCACION.","PZA","3.0000",0,"CERO PESOS 00/100 M.N.",0,334604]
[544222,"SUMINISTRO E INSTALACION DE ARRANCADOR MANUAL MONOFASICO EN GABINETE DE USOS GENERALES NEMA 1, MCA. SQUARE D, CLASE 2510 , CAT. FG1, 1F,  INCLUYE: MATERIALES MENORES Y DE CONSUMO, HERRAMIENTAS, ELEMENTOS DE FIJACION, PRUEBAS, MONO DE OBRA ESPECIALIZADA Y ACARREO DE MATERIALES AL SITIO DE SU COLOCACION.","PZA","1.0000",0,"CERO PESOS 00/100 M.N.",0,334605]
[546792,"SUMINISTRO Y COLOCACION DE VENTILADOR DE TECHO DE 52\"; 3 ASPAS, 3 ESTRATOS, 3 VELOCIDADES ( TIPO INDUSTRIAL ) INCLUYE: MATERIALES MENORES Y DE FIJACION, HERRAMIENATAS, LIMPIEZA, PRUEBAS, MANO DE OBRA, Y ACARREO AL SITIO DE SU COLOCACION.","PZA","10.0000",0,"CERO PESOS 00/100 M.N.",0,334606]
[550090,"SUMINISTRO E INSTALACION DE LUMINARIO FLUORESCENTE DE SOBREPONER, TIPO ENVOLVENTE, AHORRADOR DE ENERGIA DE 2 X 32 WATTS. FABRICADO EN LAMINA CAL 22, RECUBIERTO CON TRATAMIENTO FOSFATIZADO Y PINTURA ACRILICA O POLIESTER COLOR BLANCO, APLICADA ELECTROSTATICAMENTE Y TERMOENDURECIDA, PARA OBTENER UNA REFLECTANCIA MINIMA DE 90%, CON DIFUSOR ACRILICO PRISMATICO 100% PURO, TIPO ENVOLVENTE, CON UNA LONGITUD DE 120 CM., BALASTRO ELECTRONICO DE BAJA EMISION DE ARMONICAS, PARA OPERAR UNA O DOS LAMPARAS T8 DE 32 WATTS, LA LUMINARIA (COMPLETA) DEBERA CUMPLIR CON LA NORMA ANCE, INCLUYE: COPIA DE CERTIFICACION ANCE ANEXA EN ELTRAMITE DE LA ESTIMACION, FIJACION, CONEXION, MATERIALES MENORES, HERRAMIENTAS, GARANTIAS,  MANO DE OBRA, PRUEBAS Y ACARREOS.","PZA","14.0000",0,"CERO PESOS 00/100 M.N.",0,334607]
[550190,"SUMINISTRO E INSTALACION DE LUMINARIO FLUORESCENTE DE SOBREPONER, TIPO ENVOLVENTE, AHORRADOR DE ENERGIA DE 2 X 59 WATTS. FABRICADO EN LAMINA CAL 22, RECUBIERTO CON TRATAMIENTO FOSFATIZADO Y PINTURA ACRILICA O POLIESTER COLOR BLANCO, APLICADA ELECTROSTATICAMENTE Y TERMOENDURECIDA, PARA OBTENER UNA REFLECTANCIA MINIMA DE 90%, CON DIFUSOR ACRILICO PRISMATICO 100% PURO, TIPO ENVOLVENTE, CON UNA LONGITUD DE 240 CM., BALASTRO ELECTRONICO DE BAJA EMISION DE ARMONICAS, PARA OPERAR UNA O DOS LAMPARAS T8 DE 59 WATTS, (EQUIVALENTE A 4 LAMPARAS T8 DE 32 WATTS.), LA LUMINARIA (COMPLETA) DEBERA CUMPLIR CON LA NORMA ANCE, INCLUYE: COPIA DE CERTIFICACION ANCE ANEXA EN EL TRAMITE DE LA ESTIMACION, FIJACION, CONEXION, MATERIALES MENORES, HERRAMIENTAS, GARANTIAS, MANO DE OBRA, PRUEBAS Y ACARREOS.","PZA","31.0000",0,"CERO PESOS 00/100 M.N.",0,334608]
[905315,"RECABLEADO DE SALIDA ELECTRICA PARA APAGADOR EN DUCTERIA EXISTENTE, CABLE VINANEL THW-LS 600 V. A 75° C, 90° C, MARCA CONDUCTORES MONTERREY, (VIAKON-PROTOCOLIZADO), CABLE VINANEL 21 THW-LS 600 V. A 75° C, 90° C, MARCA CONDUMEX (CONDUMEX PROTOCOLIZADO).  CALIBRE 12, INCLUYE: DESCONEXIONES, RETIRO DE ACCESORIOS Y CABLES AL 100%, MATERIALES MENORES,  HERRAMIENTA, MANO DE OBRA ESPECIALIZADA , CONEXIONES, LIMPIEZA DEL AREA DE TRABAJO, PRUEBAS, DESPERDICIOS Y ACARREO DEL MATERIAL AL SITIO DE SU COLOCACION, A CUALQUIER NIVEL. (NO INCLUYE DUCTERIA, REGISTRO Y CHALUPAS)","SAL","10.0000",0,"CERO PESOS 00/100 M.N.",0,334609]
[905321,"RECABLEADO DE SALIDA ELECTRICA PARA CONTACTO EN DUCTERIA EXISTENTE, CABLE VINANEL THW-LS 600 V. A 75° C, 90° C, MARCA CONDUCTORES MONTERREY, (VIAKON-PROTOCOLIZADO), CABLE VINANEL 21 THW-LS 600 V. A 75° C, 90° C, MARCA CONDUMEX (CONDUMEX PROTOCOLIZADO).  CALIBRE 12 EN FASES Y CABLE DE COBRE DESNUDO CAL 12 EN TIERRA FISICA, INCLUYE: DESCONEXIONES, RETIRO DE ACCESORIOS Y CABLES AL 100%,  MATERIALES MENORES,  HERRAMIENTA, MANO DE OBRA ESPECIALIZADA , CONEXIONES, LIMPIEZA DEL AREA DE TRABAJO, PRUEBAS, DESPERDICIOS Y ACARREO DEL MATERIAL AL SITIO DE SU COLOCACION, A CUALQUIER NIVEL. (NO INCLUYE DUCTERIA, REGISTRO Y CHALUPAS)","SAL","10.0000",0,"CERO PESOS 00/100 M.N.",0,334610]
[910626,"RECABLEADO DE SALIDA ELECTRICA DE CENTRO EN DUCTERIA EXISTENTE, CABLE VINANEL THW-LS 600 V. A 75° C, 90° C, MARCA CONDUCTORES MONTERREY, (VIAKON-PROTOCOLIZADO), CABLE VINANEL 21 THW-LS 600 V. A 75° C, 90° C, MARCA CONDUMEX (CONDUMEX PROTOCOLIZADO).  CALIBRE 12, INCLUYE: DESCONEXIONES, RETIRO DE CABLES AL 100%, MATERIALES MENORES, HERRAMIENTA, MANO DE OBRA ESPECIALIZADA , CONEXIONES, LIMPIEZA DEL AREA DE TRABAJO, PRUEBAS, DESPERDICIOS Y ACARREO DEL MATERIAL AL SITIO DE SU COLOCACION, A CUALQUIER NIVEL. (NO INCLUYE DUCTERIA, REGISTRO Y CHALUPAS)","SAL","10.0000",0,"CERO PESOS 00/100 M.N.",0,334612]
[910754,"SUMINISTRO Y COLOCACION DE EMPALME A CABLE DE CAL. 2 A 1/0 AWG, A BASE DE CONECTOR A TOPE DE BARRIL LARGO Y AISLAMIENTO DE MANGA TERMOCONTRACTIL POR CALOR, CINTA DE VINILO, INCLUYE:  DESPERDICIOS, MATERIALES MENORES, PRUEBAS Y ACARREOS AL SITIO DE SU COLOCACION.","PZA","4.0000",0,"CERO PESOS 00/100 M.N.",0,334613]
[910757,"SUMINISTRO Y COLOCACION DE EMPALME A CABLE DE CAL. 2/0 A 4/0 AWG, A BASE DE CONECTOR A TOPE DE BARRIL LARGO Y AISLAMIENTO DE MANGA TERMOCONTRACTIL POR CALOR, CINTA DE VINILO, INCLUYE: DESPERDICIOS, MATERIALES MENORES, PRUEBAS Y ACARREOS AL SITIO DE SU COLOCACION.","PZA","4.0000",0,"CERO PESOS 00/100 M.N.",0,334614]
[916773,"IDENTIFICACION DE CIRCUITOS EN LUMINARIAS Y CONTACTOS EN EDIFICO, PARA EL PEINADO DE TABLEROS Y/O CENTROS DE CARGA, CONEXIONES E IDENTIFICACION, INCLUYE: MATERIALES MENORES Y DE CONSUMO, ETIQUETAS, CONEXIONES, HERRAMIENTAS,  PRUEBAS LIMPIEZA Y MANO DE OBRA ESPECIALIZADA.","PZA","6.0000",0,"CERO PESOS 00/100 M.N.",0,334615]
[931277,"ROTULACION DE TABLEROS Y/O CENTROS DE CARGA,  E IDENTIFICACION DE CIRCUITOS, INCLUYE: MATERIALES MENORES Y DE CONSUMO, ETIQUETAS, HERRAMIENTAS,  PRUEBAS LIMPIEZA Y MANO DE OBRA ESPECIALIZADA.","PZA","6.0000",0,"CERO PESOS 00/100 M.N.",0,334616]
["EDFS.04(530)","EQUIPOS E INSTALACIONES DE REDES DE VOZ Y DATOS.  ",null,null,null,null,{"$f":"TEXT(SUM(G55:G55), \"$ #,##0.00 ;\")","v":"$ 0.00 "}]
[524660,"SALIDA PARA EL SISTEMA DE RED DE VIDEO, SONIDO, VOZ Y/O DATOS, AEREO VISIBLE, PARA SERVICIO A EQUIPOS DE COMPUTO, FORMADA CON TUBERIA CONDUIT GALVANIZADA DE AJUSTE, ETIQUETA VERDE DE 19 Y 25 MM DE DIAM,Y CONDULET SERIE RECTANGULAR EN LA SALIDA TIPO \"FS\", CAJAS DE REGISTRO  GALVANIZADAS TIPO REFORZADO CON TAPA Y CON ALAMBRE GALVANIZADO CAL NO. 14,  (DE ACUERDO A PLANO DE INSTALACIONES PROPORCIONADO), INCLUYE: TRAZO, MATERIALES MENORES Y DE CONSUMO, CONEXIONES (MONITORES, CONTRAS, CURVAS, ETC.), SOPORTARÍA, ELEMENTOS DE FIJACION,  DESPERDICIOS, PRUEBAS, LIMPIEZAS, HERRAMIENTAS, ANDAMIOS, MANO DE OBRA Y ACARREOS. A CUALQUIER ALTURA.","SAL","5.0000",0,"CERO PESOS 00/100 M.N.",0,334617]
["EDFS.05(535)","EQUIPOS E INTALACIONES DE SONIDO, CONTROL Y VIDEO.",null,null,null,null,{"$f":"TEXT(SUM(G57:G58), \"$ #,##0.00 ;\")","v":"$ 0.00 "}]
[524622,"SALIDA PARA TELEFONO, INTERCOMUNICACION Y SONIDO, OCULTA, CON TUBERIA Y CONEXIONES CONDUIT GALVANIZADA P.G., ETIQUETA VERDE DE AJUSTE, DE 19 MM. DE DIAMETRO, ALAMBRE GUIA GALV. CAL. 14, ACCESORIOS QUINZIÑO, CAJA REGISTRO Y TAPA, INCLUYE: MATERIALES MENORES, PRUEBAS, DESPERDICIOS Y ACARREO DEL MATERIAL AL SITIO DE SU COLOCACION, A CUALQUIER NIVEL.","SAL","5.0000",0,"CERO PESOS 00/100 M.N.",0,334618]
[524630,"CABLEADO DE SALIDA DE SONIDO, PARA SERVICIO A BOCINAS O BAFLES, COMPUESTA CON CABLE POLARIZADO PARA BOCINAS CAL. 12  AWG. MCA. CYSAMEX O SIMILAR, INCLUYE: CONEXIONES, ACCESORIOS, PLACA CIEGA QUINZIÑO,  MATERIALES, ELEMENTOS DE FIJACION, DESPERDICIOS, PRUEBAS, ACARREOS,  GARANTIA, LIMPIEZAS Y MANO DE OBRA ESPECIALIZADA.","SAL","5.0000",0,"CERO PESOS 00/100 M.N.",0,334619]
["EDFS.06(511)","INSTALACION ELECTRICA EN OBRA EXTERIOR            ",null,null,null,null,{"$f":"TEXT(SUM(G60:G60), \"$ #,##0.00 ;\")","v":"$ 0.00 "}]
[907431,"SUMINISTRO E INSTALACION DE LUMINARIO URBANO PUNTA DE POSTE MCA PHILIPS,  LINEA TOWNGUIDE FLAT CONE, SERIE. BPDP100- 50W120LED4K, FABRICADA EN ALECION DE ALUMINIO INYECTADO CON CUBIERTA OPTICA DE POLICARBONATO TRANSPARENTE DE ALTA RESISTENCIA IP66 (ANTIVANDALISMO), CON DRIVER INTEGRADO PARA OPERAR CON UNA LAMPARA DE LED DE 50 WATTS, 120-277 VOLTS/60HZ, DE 8 MODULOS DE LED, TEMPERATURA DE COLOR DE 4000 °K, INCLUYE: LAMPARA, MATERIALES MENORES Y DE CONSUMO, ELEMENTOS DE FIJACION, COPLE DA ADAPTACION A POSTE, HERRAMIENTA, ANDAMIOS, CONEXIONES, CONECTORES, MANO DE OBRA ESPECIALIZADA, LIMPIEZA DEL AREA DE TRABAJO, PRUEBAS, DESPERDICIOS Y ACARREO DEL MATERIAL AL SITIO DE SU COLOCACION, A CUALQUIER ALTURA.","PZA","1.0000",0,"CERO PESOS 00/100 M.N.",0,334611]
[19,"SUBESTACION",null,null,null,null,{"$f":"TEXT(SUM(G62 + G64), \"$ #,##0.00 ;\")","v":"$ 0.00 "}]
["19.01(140)","DEMOLICIONES, DESMONTAJES Y MECANICA DE SUELOS    ",null,null,null,null,{"$f":"TEXT(SUM(G63:G63), \"$ #,##0.00 ;\")","v":"$ 0.00 "}]
[140090,"DESMANTELAMIENTO Y RETIRO DE TRANSFORMADOR EXISTENTE, BASE DE MEDICION, INTERRUPTOR GENERAL Y LINEA DE BAJA TENSION. INCLUYE: MOVIMIENTOS, FLETES, GRUA,  ARRASTRES, MANIOBRAS, HERRAMIENTA, MANO DE OBRA CALIFICADA,  Y TRASLADO A LUGAR INDICADO POR SUPERVISION.","PZA","1.0000",0,"CERO PESOS 00/100 M.N.",0,334620]
["19.02(520)","SUBESTACION, GENERADORES Y CELDAS SOLARES.        ",null,null,null,null,{"$f":"TEXT(SUM(G65:G72), \"$ #,##0.00 ;\")","v":"$ 0.00 "}]
[558572,"SUMINISTRO Y COLOCACION DE SISTEMA DE TIERRAS PARA TRANSFORMADOR Y CCF3C, CCF-2C Y CCF-1C, INCLUYE: 3 (TRES) VARILLAS COPER WELD DE 16 X 3000 MM, 3 (TRES) CARGA CADWELD NO. 90, 19 MTS. DE CABLE DE COBRE DESNUDO CAL. NO. 2 AWG, 1 (UNO) CONECTOR PURO CAL. 1/0, 0.06 (PUNTO CERO SEIS) PARTE PROPORCIONAL DE MOLDE. FLETES Y MANO DE OBRA (TODOS LOS MATERIALES DEBERAN CONTAR CON PROTOCOLO DE PRUEBAS DE LAPEM).","PZA","1.0000",0,"CERO PESOS 00/100 M.N.",0,334669]
[880612,"SUMINISTRO Y COLOCACION DE REGISTRO ELECTRICO DE CONCRETO, PREFABRICADO, PARA BAJA TENSION TIPO 2 NORMA C.F.E.- RBTB-2 DE 66 X 100 X 65 CM., CON TAPA DE CONCRETO,  MARCO Y CONTRAMARCO  DE ACERO GALVANIZADO, INCLUYE: TRAZO, EXCAVACION, RELLENOS COMPACTADOS, FILTRO DE GRAVA, RESANADO FINO DE TUBERIAS EN SU INTERIOR, HERRAMIENTAS, MANO DE OBRA, FLETES, ACARREO AL SITIO DE SU COLOCACION Y LIMPIEZA DEL AREA DE TRABAJO.","PZA","7.0000",0,"CERO PESOS 00/100 M.N.",0,334670]
[880718,"TRAMITE ANTE LA C.F.E. PARA LA CONEXIÓN DE LA ACOMETIDA EN MEDIA TENSION A LA SUBESTACION INCLUYE: PAGOS NECESARIOS POR CONEXIÓN Y LIBRANZA.","PDA","1.0000",0,"CERO PESOS 00/100 M.N.",0,334671]
[905880,"SUMINISTRO E INSTALACION DE APARTARRAYOS TIPO OXIDO DE ZINC DE 25 KV. INCLUYE; EL DESMONTAJE DE TRES EXISTENTES Y  LA INSTALACION DE LAS NUEVAS DEVOLUCION DE LOS TRES EXISTENTES A LA DIRECCION DE LA ESCUELA, ASI COMO MANO DE OBRA CALIFICADA, HERRAMIENTAS MENORES, TODO LO NECESARIO PARA SU BUEN FUNCIONAMIENTO, TODOS LOS MATERIALES DEBERAN DE ESTAR PROTOCOLIZADOS CON PRUEBAS DE LAPEM.","PDA","1.0000",0,"CERO PESOS 00/100 M.N.",0,334672]
[905892,"SUMINISTRO Y COLOCACION DE TRANSFORMADOR TRIFASICO DE 75 KVA, TIPO POSTE, AUTOENFRIADO EN ACEITE, PARA 23,000 VOLTS. EN ALTA TENSION. 220/127 EN BAJA TENSION. NORMA ANCE,  INCLUYE: MATERIALES MENORES, ELEVACIONES, HERRAMIENTAS, MANO DE OBRA CALIFICADA, PRUEBAS, FLETE, MANIOBRAS DE CARGA Y DESCARGA, HASTA EL SITIO DE SU COLOCACION.","PZA","1.0000",0,"CERO PESOS 00/100 M.N.",0,334673]
[916085,"SUMINISTRO Y COLOCACION DE LISTON FUSIBLE DE MEDIA TENSION EN PORTAFUSIBLE EXISTENTE, INCLUYE: DESCONEXION DE LINEA DE ACOMETIDA EN MEDIA TENSION PARA QUITAR LOS LISTON PROVICIONAL INSTALADO POR CFE Y COLOCAR PORTAFUSIBLE DEFINITIVO, INCLUYE: MANO DE OBRA ESPECIALIZADA, ACARREOS HASTA EL SITIO DE SU COLOCACION.","PZA","3.0000",0,"CERO PESOS 00/100 M.N.",0,334674]
[917454,"CONEXION A LAS LINEAS DE LA CFE, INCLUYE: HACER PUENTES AEREOS, MANO DE OBRA CALIFICADA, HERRAMIENTAS MENORES, ETC.","PDA","1.0000",0,"CERO PESOS 00/100 M.N.",0,334675]
[930012,"PROYECTO ELECTRICO DE LA NUEVA CARGA POR ADICIONAR, TOMANDO COMO BASE EL LEVANTAMIENTO Y PLANO REALIZADOS, ELABORANDO LA MEMORIA TECNICO-DESCRIPTIVA, LA MEMORIA DE CALCULO DE LOS PRINCIPALES ALIMENTADORES, INTEGRAR PLANOS DE PROYECTO, CUADROS DE CARGA, DIAGRAMA UNIFILIAR Y BALANCEO DE CARGAS.","PDA","1.0000",0,"CERO PESOS 00/100 M.N.",0,334676]
["02","RED ELECTRICA",null,null,null,null,{"$f":"TEXT(SUM(G74 + G78), \"$ #,##0.00 ;\")","v":"$ 0.00 "}]
["02.01(140)","DEMOLICIONES, DESMONTAJES Y MECANICA DE SUELOS    ",null,null,null,null,{"$f":"TEXT(SUM(G75:G77), \"$ #,##0.00 ;\")","v":"$ 0.00 "}]
[140217,"DEMOLICION DE PISO DE CONCRETO DE 8 A 10 CM DE ESPESOR, EN FRANJAS DE 40 A 50 CMS. DE ANCHO, PARA COLOCACION DE INSTALACIONES, INCLUYE: CORTE CON DISCO PARA DELIMITAR AREA DE DEMOLICION, AFINE Y COMPACTACION DEL MATERIAL DE RELLENO, MATERIALES, REPOSICION DEL PISO DE CONCRETO F´C= 150 KG/CM2, ACABADO IGUAL AL EXISTENTE, DESPERDICIOS, MANO DE OBRA, HERRAMIENTA, EQUIPO, LIMPIEZA,  ACARREOS DE MATERIALES AL SITIO DE SU UTILIZACION, CARGA Y ACARREO INTERIOR Y FUERA DE LA OBRA DEL MATERIAL PRODUCTO DE LA DEMOLICION.","ML ","60.0000",0,"CERO PESOS 00/100 M.N.",0,334621]
[907176,"DEMOLICION DE PISO DE CONCRETO DE 0.08 A 0.10 CM DE ESPESOR, Y  5 A 15 CMS. DE ANCHO, INCLUYE: CORTE CON DISCO PARA DELIMITAR AREA DE DEMOLICION, EXCAVACION, RELLENO, COMPACTACION, REPOSICION DEL PISO DE CONCRETO, MANO DE OBRA, HERRAMIENTA, EQUIPO,  CARGA Y ACARREO INTERIOR Y FUERA DE LA OBRA DEL MATERIAL PRODUCTO DE LA DEMOLICION.","ML ","60.0000",0,"CERO PESOS 00/100 M.N.",0,334622]
[935619,"DESCONEXION Y DESINSTALACION DE ALIMENTADORES EXISTENTES, INCLUYE: RETIRO DE CABLES EN CONJUNTO, POR METRO LINEAL, Y DUCTOS DE CUALQUIER CALIBRE Y DIAMETRO, EXCAVACION, CORTES, RELLENO, RANURAS, ACARREO, MANO DE OBRA Y LIMPIEZA.","ML ","100.0000",0,"CERO PESOS 00/100 M.N.",0,334623]
["02.02(511)","INSTALACION ELECTRICA EN OBRA EXTERIOR            ",null,null,null,null,{"$f":"TEXT(SUM(G79:G122), \"$ #,##0.00 ;\")","v":"$ 0.00 "}]
[534004,"SUMINISTRO Y TENDIDO DE TUBO CONDUIT DE P.V.C. PESADO, DE 19 MM DIAM. INCLUYE: CONEXIONES, TRAZO, EXCAVACION, RELLENO, DESPERDICIOS, MATERIALES MENORES, PRUEBAS Y ACARREO AL SITIO DE SU COLOCACION.","ML ","250.0000",0,"CERO PESOS 00/100 M.N.",0,334624]
[534006,"SUMINISTRO Y TENDIDO DE TUBO CONDUIT DE P.V.C. PESADO, DE 25 MM DIAM. INC.: CONEXIONES, TRAZO, EXCAVACION, RELLENO, DESPERDICIOS, MATERIALES MENORES, PRUEBAS Y ACARREO AL SITIO DE SU COLOCACION.","ML ","10.0000",0,"CERO PESOS 00/100 M.N.",0,334625]
[534012,"SUMINISTRO Y TENDIDO DE TUBO CONDUIT DE P.V.C. PESADO, DE 50 MM DIAM. INC.: CONEXIONES, TRAZO, EXCAVACION, RELLENO, DESPERDICIOS, MATERIALES MENORES, PRUEBAS Y ACARREO AL SITIO DE SU COLOCACION.","ML ","550.0000",0,"CERO PESOS 00/100 M.N.",0,334626]
[534014,"SUMINISTRO Y TENDIDO DE TUBO CONDUIT DE P.V.C. PESADO, DE 64 MM DIAM. INC.: CONEXIONES, TRAZO, EXCAVACION, RELLENO, DESPERDICIOS, MATERIALES MENORES, PRUEBAS Y ACARREO AL SITIO DE SU COLOCACION.","ML ","10.0000",0,"CERO PESOS 00/100 M.N.",0,334627]
[534059,"SUMINISTRO Y COLOCACION DE CURVA CONDUIT DE PVC PESADO  DE 19 MM.  DE DIAM.  INCLUYE: MATERIALES MENORES Y DE CONSUMO, HERRAMIENTAS, PRUEBAS,  DESPERDICIOS, MANO DE OBRA Y ACARREOS AL SITIO DE SU COLOCACION.","PZA","1.0000",0,"CERO PESOS 00/100 M.N.",0,334628]
[534113,"SUMINISTRO Y COLOCACION DE TUBO CONDUIT GALVANIZADO, DE 64 MM, PARED GRUESA ROSCADA ETIQUETA AMARILLA, INCLUYE: TRAZO, CORTES, AJUSTES, CONECTORES, COPLES, DOBLECES, ROSCADO, DESPERDICIOS, MATERIALES MENORES, HERRAMIENTAS, PRUEBAS, LIMPIEZA, MANO DE OBRA Y ACARREO DE MATERIALES AL SITIO DE SU COLOCACION.","ML ","10.0000",0,"CERO PESOS 00/100 M.N.",0,334629]
[536008,"SUMINISTRO Y COLOCACION DE CABLE VINANEL THW-LS 600 V. A 75° C, 90° C, MARCA CONDUCTORES MONTERREY, (VIAKON-PROTOCOLIZADO), CABLE VINANEL 21 THW-LS 600 V. A 75° C, 90° C, MARCA CONDUMEX (CONDUMEX PROTOCOLIZADO). CAL. 10,  INCLUYE: DESPERDICIOS, MATERIALES MENORES, HERRAMIENTA, CONEXIONES, MANO DE OBRA ESPECIALIZADA, LIMPIEZA DEL AREA DE TRABAJO, PRUEBAS Y ACARREO AL SITIO DE SU COLOCACION.","ML ","360.0000",0,"CERO PESOS 00/100 M.N.",0,334630]
[536010,"SUMINISTRO Y COLOCACION DE CABLE VINANEL THW-LS 600 V. A 75° C, 90° C, MARCA CONDUCTORES MONTERREY, (VIAKON-PROTOCOLIZADO), CABLE VINANEL 21 THW-LS 600 V. A 75° C, 90° C, MARCA CONDUMEX (CONDUMEX PROTOCOLIZADO). CAL. 8,  INCLUYE: DESPERDICIOS, MATERIALES MENORES, HERRAMIENTA, CONEXIONES, MANO DE OBRA ESPECIALIZADA, LIMPIEZA DEL AREA DE TRABAJO, PRUEBAS Y ACARREO AL SITIO DE SU COLOCACION.","ML ","33.0000",0,"CERO PESOS 00/100 M.N.",0,334631]
[536012,"SUMINISTRO Y COLOCACION DE CABLE VINANEL THW-LS 600 V. A 75° C, 90° C, MARCA CONDUCTORES MONTERREY, (VIAKON-PROTOCOLIZADO), CABLE VINANEL 21 THW-LS 600 V. A 75° C, 90° C, MARCA CONDUMEX (CONDUMEX PROTOCOLIZADO). CAL. 6,  INCLUYE: DESPERDICIOS, MATERIALES MENORES, HERRAMIENTA, CONEXIONES, MANO DE OBRA ESPECIALIZADA, LIMPIEZA DEL AREA DE TRABAJO, PRUEBAS Y ACARREO AL SITIO DE SU COLOCACION.","ML ","10.0000",0,"CERO PESOS 00/100 M.N.",0,334632]
[536014,"SUMINISTRO Y COLOCACION DE CABLE VINANEL THW-LS 600 V. A 75° C, 90° C, MARCA CONDUCTORES MONTERREY, (VIAKON-PROTOCOLIZADO), CABLE VINANEL 21 THW-LS 600 V. A 75° C, 90° C, MARCA CONDUMEX (CONDUMEX PROTOCOLIZADO). CAL. 4,  INCLUYE: DESPERDICIOS, MATERIALES MENORES, HERRAMIENTA, CONEXIONES, MANO DE OBRA ESPECIALIZADA, LIMPIEZA DEL AREA DE TRABAJO, PRUEBAS Y ACARREO AL SITIO DE SU COLOCACION.","ML ","10.0000",0,"CERO PESOS 00/100 M.N.",0,334633]
[536016,"SUMINISTRO Y COLOCACION DE CABLE VINANEL THW-LS 600 V. A 75° C, 90° C, MARCA CONDUCTORES MONTERREY, (VIAKON-PROTOCOLIZADO), CABLE VINANEL 21 THW-LS 600 V. A 75° C, 90° C, MARCA CONDUMEX (CONDUMEX PROTOCOLIZADO). CAL. 2,  INCLUYE: DESPERDICIOS, MATERIALES MENORES, HERRAMIENTA, CONEXIONES, MANO DE OBRA ESPECIALIZADA, LIMPIEZA DEL AREA DE TRABAJO, PRUEBAS Y ACARREO AL SITIO DE SU COLOCACION.","ML ","10.0000",0,"CERO PESOS 00/100 M.N.",0,334634]
[536018,"SUMINISTRO Y COLOCACION DE CABLE VINANEL THW-LS 600 V. A 75° C, 90° C, MARCA CONDUCTORES MONTERREY, (VIAKON-PROTOCOLIZADO), CABLE VINANEL 21 THW-LS 600 V. A 75° C, 90° C, MARCA CONDUMEX (CONDUMEX PROTOCOLIZADO). CAL. 1/0,  INCLUYE: DESPERDICIOS, MATERIALES MENORES, HERRAMIENTA, CONEXIONES, MANO DE OBRA ESPECIALIZADA, LIMPIEZA DEL AREA DE TRABAJO, PRUEBAS Y ACARREO AL SITIO DE SU COLOCACION.","ML ","10.0000",0,"CERO PESOS 00/100 M.N.",0,334635]
[536020,"SUMINISTRO Y COLOCACION DE CABLE VINANEL THW-LS 600 V. A 75° C, 90° C, MARCA CONDUCTORES MONTERREY, (VIAKON-PROTOCOLIZADO), CABLE VINANEL 21 THW-LS 600 V. A 75° C, 90° C, MARCA CONDUMEX (CONDUMEX PROTOCOLIZADO). CAL. 2/0,  INCLUYE: DESPERDICIOS, MATERIALES MENORES, HERRAMIENTA, CONEXIONES, MANO DE OBRA ESPECIALIZADA, LIMPIEZA DEL AREA DE TRABAJO, PRUEBAS Y ACARREO AL SITIO DE SU COLOCACION.","ML ","10.0000",0,"CERO PESOS 00/100 M.N.",0,334636]
[536022,"SUMINISTRO Y COLOCACION DE CABLE VINANEL THW-LS 600 V. A 75° C, 90° C, MARCA CONDUCTORES MONTERREY, (VIAKON-PROTOCOLIZADO), CABLE VINANEL 21 THW-LS 600 V. A 75° C, 90° C, MARCA CONDUMEX (CONDUMEX PROTOCOLIZADO). CAL. 3/0,  INCLUYE: DESPERDICIOS, MATERIALES MENORES, HERRAMIENTA, CONEXIONES, MANO DE OBRA ESPECIALIZADA, LIMPIEZA DEL AREA DE TRABAJO, PRUEBAS Y ACARREO AL SITIO DE SU COLOCACION.","ML ","120.0000",0,"CERO PESOS 00/100 M.N.",0,334637]
[536129,"SUMINISTRO Y COLOCACION DE CURVA CONDUIT DE PVC PESADO  DE 64 MM.  DE DIAM.  INCLUYE: MATERIALES MENORES Y DE CONSUMO, HERRAMIENTAS, PRUEBAS,  DESPERDICIOS, MANO DE OBRA Y ACARREOS AL SITIO DE SU COLOCACION.","PZA","2.0000",0,"CERO PESOS 00/100 M.N.",0,334638]
[536130,"SUMINISTRO Y COLOCACION DE CURVA CONDUIT DE PVC PESADO  DE 51 MM.  DE DIAM.  INCLUYE: MATERIALES MENORES Y DE CONSUMO, HERRAMIENTAS, PRUEBAS,  DESPERDICIOS, MANO DE OBRA Y ACARREOS AL SITIO DE SU COLOCACION.","PZA","6.0000",0,"CERO PESOS 00/100 M.N.",0,334639]
[536141,"SUMINISTRO Y COLOCACION DE CURVA CONDUIT DE PVC PESADO  DE 25 MM.  DE DIAM.  INCLUYE: MATERIALES MENORES Y DE CONSUMO, HERRAMIENTAS, PRUEBAS,  DESPERDICIOS, MANO DE OBRA Y ACARREOS AL SITIO DE SU COLOCACION.","PZA","1.0000",0,"CERO PESOS 00/100 M.N.",0,334640]
[537101,"SUMINISTRO Y COLOCACION DE CABLE DE COBRE DESNUDO CAL. 1/0, AWG, MCA. CONDUMEX, CONELEC O CONDUCTORES MONTERREY. INCLUYE: DESPERDICIOS, MATERIALES MENORES, PRUEBAS Y ACARREO AL SITIO DE SU COLOCACION.","ML ","30.0000",0,"CERO PESOS 00/100 M.N.",0,334641]
[537102,"SUMINISTRO Y COLOCACION DE CABLE DE COBRE DESNUDO CAL. 2, AWG, MCA. CONDUMEX, CONELEC O CONDUCTORES MONTERREY. INCLUYE: DESPERDICIOS, MATERIALES MENORES, PRUEBAS Y ACARREO AL SITIO DE SU COLOCACION.","ML ","15.0000",0,"CERO PESOS 00/100 M.N.",0,334642]
[537108,"SUMINISTRO Y COLOCACION DE CABLE DE COBRE DESNUDO CAL. 10, AWG, MCA. CONDUMEX, CONELEC O CONDUCTORES MONTERREY. INCLUYE: DESPERDICIOS, MATERIALES MENORES, PRUEBAS Y ACARREO AL SITIO DE SU COLOCACION.","ML ","210.0000",0,"CERO PESOS 00/100 M.N.",0,334643]
[537112,"SUMINISTRO Y COLOCACION DE CABLE DE COBRE DESNUDO CAL. 8, AWG, MCA. CONDUMEX, CONELEC O CONDUCTORES MONTERREY. INCLUYE: DESPERDICIOS, MATERIALES MENORES, PRUEBAS Y ACARREO AL SITIO DE SU COLOCACION.","ML ","550.0000",0,"CERO PESOS 00/100 M.N.",0,334644]
[538018,"SUMINISTRO E INSTALACION DE CABLE DE ALUMINIO CON AISLAMIENTO XLP, CAL.6 AWG, MONOPOLAR, PARA DISTRIBUCION SUBTERRANEA, VULCANEL SERIE AA 8000, TIPO XHHW-2, LS CT-SR ROHS, 90 °C, 600 V,  MARCA CONDUCTORES MONTERREY O  CONDUMEX,  INCLUYE: FLETE, ELEVACION, CONEXIONES, MATERIALES MENORES Y DE CONSUMO, HERRAMIENTAS, EQUIPO DE SEGURIDAD, DESPERDICIOS, LIMPIEZA DEL AREA DE TRABAJO, PRUEBAS, Y MANO DE OBRA,  EN CUALQUIER NIVEL.","ML ","340.0000",0,"CERO PESOS 00/100 M.N.",0,334645]
[538022,"SUMINISTRO E INSTALACION DE CABLE DE ALUMINIO CON AISLAMIENTO XLP, CAL.2  AWG, MONOPOLAR, PARA DISTRIBUCION SUBTERRANEA, VULCANEL SERIE AA 8000, TIPO XHHW-2, LS CT-SR ROHS, 90 °C, 600 V,  MARCA CONDUCTORES MONTERREY O  CONDUMEX,  INCLUYE: FLETE, ELEVACION, CONEXIONES, MATERIALES MENORES Y DE CONSUMO, HERRAMIENTAS, EQUIPO DE SEGURIDAD, DESPERDICIOS, LIMPIEZA DEL AREA DE TRABAJO, PRUEBAS, Y MANO DE OBRA,  EN CUALQUIER NIVEL.","ML ","242.0000",0,"CERO PESOS 00/100 M.N.",0,334646]
[538026,"SUMINISTRO E INSTALACION DE CABLE DE ALUMINIO CON AISLAMIENTO XLP, CAL.1/0 AWG, MONOPOLAR, PARA DISTRIBUCION SUBTERRANEA, VULCANEL SERIE AA 8000, TIPO XHHW-2, LS CT-SR ROHS, 90 °C, 600 V,  MARCA CONDUCTORES MONTERREY O  CONDUMEX,  INCLUYE: FLETE, ELEVACION, CONEXIONES, MATERIALES MENORES Y DE CONSUMO, HERRAMIENTAS, EQUIPO DE SEGURIDAD, DESPERDICIOS, LIMPIEZA DEL AREA DE TRABAJO, PRUEBAS, Y MANO DE OBRA,  EN CUALQUIER NIVEL.","ML ","1,452.0000",0,"CERO PESOS 00/100 M.N.",0,334647]
[538030,"SUMINISTRO E INSTALACION DE CABLE DE ALUMINIO CON AISLAMIENTO XLP, CAL.3/0 AWG, MONOPOLAR, PARA DISTRIBUCION SUBTERRANEA, VULCANEL SERIE AA 8000, TIPO XHHW-2, LS CT-SR ROHS, 90 °C, 600 V,  MARCA CONDUCTORES MONTERREY O  CONDUMEX,  INCLUYE: FLETE, ELEVACION, CONEXIONES, MATERIALES MENORES Y DE CONSUMO, HERRAMIENTAS, EQUIPO DE SEGURIDAD, DESPERDICIOS, LIMPIEZA DEL AREA DE TRABAJO, PRUEBAS, Y MANO DE OBRA,  EN CUALQUIER NIVEL.","ML ","506.0000",0,"CERO PESOS 00/100 M.N.",0,334648]
[540044,"SUMINISTRO Y COLOCACION DE CENTRO DE CARGA TRIFASICO, MARCA SQUARE- D TIPO QO320L125G, 20 POLOS, 125 A. CON ZAPATAS, INCLUYE: CONEXIONES, MATERIALES MENORES Y DE CONSUMO, PRUEBAS, FLETES, HERRAMIENTAS, IDENTIFICACION DE CIRCUITOS, LIMPIEZA YMANO DE OBRA CALIFICADA.","PZA","2.0000",0,"CERO PESOS 00/100 M.N.",0,334649]
[540220,"SUMINISTRO E INSTALACION DE TABLERO DE DISTRUBUCION GENERAL, SERIE \"B\" TAMAÑO 1,  TIPO I-LINE, CAT. JG-250M-141B,3 FASES, 4 HILOS,  PARA 14 ESPACIOS CON INTERRUPTOR PRINCIPAL DE 250 AMPS. (JGA-36250),  INCLUYE: INTERRUPTOR PRINCIPAL, HERRAMIENTAS, MATERIALES DE FIJACION, CONEXION, PRUEBAS, ESPACIADORES SQD, PLACA SQD, MATERIALES MENORES, MANO DE OBRA ESPECIALIZADA Y ACARREOS AL SITIO DE SU INSTALACION.","PZA","1.0000",0,"CERO PESOS 00/100 M.N.",0,334650]
[540305,"SUMINISTRO E INSTALACION DE CENTRO DE CARGA CAT. QO-816L-100,  DE 8 POLOS  100 AMPERES, INCLUYE: MATERIALES, ZAPATAS, MANO DE OBRA, HERRAMIENTAS, ELEMENTOS DE FIJACION, PRUEBAS,  ACARREOS Y MATERIALES MENORES.","PZA","1.0000",0,"CERO PESOS 00/100 M.N.",0,334651]
[540420,"SUMINISTRO Y COLOCACION DE CENTRO DE CARGAS LINEA DOMESTICA QOD-4F O S, MCA. SQUARE D, INCLUYE: ELEMENTOS DE FIJACION,  PRUEBAS, MATERIALES MENORES Y DE CONSUMO, CONEXIONES, LIMPIEZAS, HERRAMIENTAS, MANO DE OBRA ESPECIALIZADA Y ACARREO DE MATERIALES AL SITIO DE SU COLOCACION.","PZA","1.0000",0,"CERO PESOS 00/100 M.N.",0,334652]
[542059,"SUMINISTRO Y COLOCACION DE CENTRO DE CARGA MARCA SQUARE- D TIPO QO-112L125G, 12 POLOS, 125 A. 1F, 3H, ZAPATAS, CAJA INTERIOR Y FRENTE QOC16U, INCLUYE: PRUEBAS, FLETES, MANO DE OBRA CALIFICADA, EQUIPO, HERRAMIENTA Y TODO LO NECESARIO PARA SU CORRECTA COLOCACION.","PZA","1.0000",0,"CERO PESOS 00/100 M.N.",0,334653]
[543032,"SUMINISTRO Y COLOCACION DE INTERRUPTOR TERMOMAGNETICO DERIVADO CON 3 POLOS, DE 15-60 AMPERES, MCA. SQUARE D, CAT. QO. INCLUYE: PRUEBAS, MATERIALES MENORES, HERRAMIENTAS, MANO DE OBRA ESPECIALIZADA  Y ACARREO DE MATERIALES AL SITIO DE SU COLOCACION.","PZA","1.0000",0,"CERO PESOS 00/100 M.N.",0,334654]
[543064,"SUMINISTRO Y COLOCACION DE INTERRUPTOR TERMOMAGNETICO POWERPACT MARCO \"H\" CON 3 POLOS, DE 15-60 AMPERES, MCA. SQUARE´D, CAT. HDA-36015-60, INCLUYE: MATERIALES MENORES Y DE CONSUMO, CONEXION, PRUEBAS, HERRAMIENTAS, MANO DE OBRA ESPECIALIZADA Y ACARREO DE MATERIALES AL SITIO DE SU COLOCACION.","PZA","3.0000",0,"CERO PESOS 00/100 M.N.",0,334655]
[543065,"SUMINISTRO Y COLOCACION DE INTERRUPTOR TERMOMAGNETICO POWERPACT MARCO \"H\" CON 3 POLOS, DE 70-100 AMPERES, MCA. SQUARE´D, CAT. HDA-36070-100, INCLUYE: MATERIALES MENORES Y DE CONSUMO, CONEXION, PRUEBAS, HERRAMIENTAS, MANO DE OBRA ESPECIALIZADA Y ACARREO DE MATERIALES AL SITIO DE SU COLOCACION.","PZA","3.0000",0,"CERO PESOS 00/100 M.N.",0,334656]
[552022,"SUMINISTRO E INSTALACION DE FOTOCELDA CON BASE DE 1000 WATTS. 220 VOLTS.  INC.: MATERIALES MENORES, PRUEBAS Y ACARREO DE MATERIALES AL SITIO DE SU COLOCACION.","PZA","1.0000",0,"CERO PESOS 00/100 M.N.",0,334657]
[555022,"SUMINISTRO Y COLOCACION DE POSTE DE FIERRO CONICO CIRCULAR DE 6.00 MTS. DE ALTURA CON PINTURA ANTICORROSIVA Y PINTURA DE ESMALTE DE ACABADO EN COLOR VERDE JARDIN, INCLUYE; BASE DE CONCRETO F'C=200 KG/CM2 TRAPEZOIDAL DE 60 X 60 CMS. DE BASE INFERIOR, 40 X 40 CMS, BASE SUPERIOR, Y 80 CMS. DE ALTURA, ANCLAS, Y REGISTRO ELECTRICO DE CONCRETO PREFABRICADA DE 33 X 33 X 40 CM. INTERCONECTADO A BASE Y POSTE CON TUBO DE P.V.C. PESADO DE 25 MM. DE DIAMETRO,  CABLE VINANEL THW-LS 600 V. A 75° C, 90° C, MARCA CONDUCTORES MONTERREY, (VIAKON-PROTOCOLIZADO), CABLE VINANEL 21 THW-LS 600 V. A 75° C, 90° C, MARCA CONDUMEX (CONDUMEX PROTOCOLIZADO).  CAL. 10, MATERIALES MENORES, PRUEBAS Y ACARREO DEL MATERIAL AL SITIO DE SU COLOCACION.","PZA","1.0000",0,"CERO PESOS 00/100 M.N.",0,334658]
[558126,"SUMINISTRO E INSTALACION DE BASE SOCKET DE MEDICION TIPO 7 X 200 AMP  INCLUYE: CONEXION, PRUEBAS, MATERIALES MENORES Y DE FIJACION, HERRAMIENTAS, MANO DE OBRA Y ACARREOS.","PZA","1.0000",0,"CERO PESOS 00/100 M.N.",0,334659]
[558199,"SUMINISTRO Y COLOCACION DE MUFA SECA PARA ACOMETIDA, CON ENTRADA PARA TUBO DE 64 MM. DE DIAMETRO, INCLUYE: MATERIALES MENORES, PRUEBAS Y ACARREO DEL MATERIAL AL SITIO DE SU COLOCACION.","PZA","1.0000",0,"CERO PESOS 00/100 M.N.",0,334660]
[558522,"SUMINISTRO Y COLOCACION DE VARILLA DE TIERRA COOPERWELD, DE 3.00 M X 19 MM DE DIAM.  INCLUYE: UNA  CARGA CADWELD NO. 90, CONECTOR COOPER WELD, SOLDADURA CADWELD NO. 90, PARTE PROPORCIONAL DE MOLDE 161V.,  MATERIALES MENORES, PRUEBAS Y ACARREO AL SITIO DE SU COLOCACION.","PZA","6.0000",0,"CERO PESOS 00/100 M.N.",0,334661]
[880618,"SUMINISTRO Y COLOCACION DE REGISTRO ELECTRICO PARA ALUMBRADO, PREFABRICADO  DE 0.40 X 0.40 X 0.60 MTS. CON TAPA DE CONCRETO,  MARCO Y CONTRAMARCO DE FIERRO GALVANIZADO, INCLUYE: TRAZO, EXCAVACION, TAPA DE CONCRETO CON MARCO Y CONTRAMARCO DE ANGULO, RELLENO, FILTRO DE GRAVA, HERRAMIENTAS, MANO DE OBRA, FLETES, ACARREO AL SITIO DE SU COLOCACION Y LIMPIEZA DEL AREA DE TRABAJO.","PZA","10.0000",0,"CERO PESOS 00/100 M.N.",0,334662]
[907390,"CONEXION DE NUEVOS ALIMENTADORES A TABLEROS EXISTENTES, INCLUYE: PRUEBAS, BALANCEO, SEPARCION Y ACOMODO DE CABLEADO, MATERIAL MENORES Y DE CONSUMO, RESANES, MANO DE OBRA, LIMPIEZA, HERRAMIENTAS Y EQUIPO.","PZA","5.0000",0,"CERO PESOS 00/100 M.N.",0,334663]
[928776,"RECONEXION DE ALIMENTADORES ANTIGUOS A NUEVO TABLERO ELECTRICO, INCLUYE: IDENTIFICACION, FASEO, ORDENAMIENTO DE CIRCUITOS.","PDA","1.0000",0,"CERO PESOS 00/100 M.N.",0,334665]
[933328,"SUMINISTRO Y COLOCACION DE CENTRO DE CARGA MARCA SQUARE-D TIPO QO312L125G, 3 FASE, 4 HILOS, CON ZAPATA, 12 POLOS, 125 AMP, SD1, INCLUYE: PRUEBAS, FLETES, MANO DE OBRA CALIFICADA, EQUIPO, HERRAMIENTA Y TODO LO NECESARIO PARA SU CORRECTA COLOCACION.","PZA","2.0000",0,"CERO PESOS 00/100 M.N.",0,334666]
[935612,"SUMINISTRO Y COLOCACION DE EMPALME A CABLE DE CAL. 8 A 4 AWG, A BASE DE CONECTOR A TOPE DE BARRIL LARGO Y AISLAMIENTO DE MANGA TERMOCONTRACTIL POR CALOR, CINTA DE VINILO, INCLUYE:  DESPERDICIOS, MATERIALES MENORES, PRUEBAS Y ACARREOS AL SITIO DE SU COLOCACION.","PZA","4.0000",0,"CERO PESOS 00/100 M.N.",0,334667]
[973647,"SUMINISTRO Y COLOCACION DE CURVA CONDUIT GALVANIZADA DE AJUSTE DE 64 MM. DE DIAMETRO, INCLUYE: MATERIALES MENORES,  AJUSTES, DESPERDICIOS, HERRAMIENTAS, MANO DE OBRA Y ACARREO DE LOS MATERIALES AL SITIO DE SU COLOCACION.","PZA","1.0000",0,"CERO PESOS 00/100 M.N.",0,334668]
["08","MURETE DE ACOMETIDA",null,null,null,null,{"$f":"TEXT((G124), \"$ #,##0.00 ;\")","v":"$ 0.00 "}]
["08.01(511)","INSTALACION ELECTRICA EN OBRA EXTERIOR            ",null,null,null,null,{"$f":"TEXT(SUM(G125:G125), \"$ #,##0.00 ;\")","v":"$ 0.00 "}]
[916276,"MURETE PARA ACOMETIDA ELECTRICA PARA ESC. SECUNDARIA Y NIVEL SUPERIOR DE 2.50 MT DE ALTURA POR 2.56 MTS. DE ANCHO Y 1.10 MT. DE FONDO, ( MURO POSTERIOR EXISTENTE ), A BASE DE MURO DE LAMA DE 7 X 14 X 28 A SOGA, DALAS Y CASTILLOS  DE CONCRETO F´C=150 KG/CM2,  LOSAS DE CONCRETO F´C= 150 KG/CM2., ARMADO  DE ACUERDO A INDICACIONES DE PLANO (DE ACUERDO A PLANO TIPO), INCLUYE: SUM. Y COLOCACION DE GABINETE DE MEDICION DE 1.00 X 0.60 X 0.40 MTS. SOBREPUESTO EN MURETE,  EXCAVACION, RELLENOS, CIMENTACION A BASE DE ZAPATAS DE CONCRETO ARMADAS SEGUN DETALLE, ANCLAJE DE CASTILLOS, MURETE DE ENRRASE CON BLOCK DE JALCRETO, PLANTILLA CONCRETO SIMPLE F´C= 100 KG/CM2,  APLANADO, BOQUILLAS, PERFILADOS, PINTURA VINILICA Y ESMALTE, PERFORACIONES, REGISTRO ELECTRICO, TUBERIAS CONDUIT GALV. PG. PARA CONEXION A ACOMETIDA Y CONDUIT DE PVC. PESADO PARA CONEXION A REGISTRO DE DIST. Y CONEXION A SUBESTACION, SEÑALIZACION DEL MURETE INDICANDO EL NUMERO OFICIAL, PUERTAS METALICAS CON CHAPA,  MAT., HERRAMIENTAS, LIMPIEZA Y MANO DE OBRA","PZA","1.0000",0,"CERO PESOS 00/100 M.N.",0,334664]
[null,"RESUMEN DE PARTIDAS"]
["BAS-REH-06279","REHABILITACIÓN GENERAL DE INSTALACIONES ELÉCTRICAS Y SUBESTACIÓN ELÉCTRICA EN LA ESCUELA SECUNDARIA PONCIANO ARRIAGA CCT 14DES0043R, UBICADA EN LA LOCALIDAD SANTA ANITA, MUNICIPIO DE SAN PEDRO TLAQUEPAQUE, JALISCO.",null,null,null,null,{"$f":"G17","v":"$ 0.00 "}]
["EDFS","EDIFICIOS",null,null,null,null,{"$f":"G18","v":"$ 0.00 "}]
["EDFS.01(140)","DEMOLICIONES, DESMONTAJES Y MECANICA DE SUELOS    ",null,null,null,null,{"$f":"G19","v":"$ 0.00 "}]
["EDFS.02(355)","RECUBRIMIENTOS Y ACABADOS                         ",null,null,null,null,{"$f":"G26","v":"$ 0.00 "}]
["EDFS.03(510)","INSTALACION ELECTRICA EN EDIFICIO                 ",null,null,null,null,{"$f":"G28","v":"$ 0.00 "}]
["EDFS.04(530)","EQUIPOS E INSTALACIONES DE REDES DE VOZ Y DATOS.  ",null,null,null,null,{"$f":"G54","v":"$ 0.00 "}]
["EDFS.05(535)","EQUIPOS E INTALACIONES DE SONIDO, CONTROL Y VIDEO.",null,null,null,null,{"$f":"G56","v":"$ 0.00 "}]
["EDFS.06(511)","INSTALACION ELECTRICA EN OBRA EXTERIOR            ",null,null,null,null,{"$f":"G59","v":"$ 0.00 "}]
[19,"SUBESTACION",null,null,null,null,{"$f":"G61","v":"$ 0.00 "}]
["19.01(140)","DEMOLICIONES, DESMONTAJES Y MECANICA DE SUELOS    ",null,null,null,null,{"$f":"G62","v":"$ 0.00 "}]
["19.02(520)","SUBESTACION, GENERADORES Y CELDAS SOLARES.        ",null,null,null,null,{"$f":"G64","v":"$ 0.00 "}]
["02","RED ELECTRICA",null,null,null,null,{"$f":"G73","v":"$ 0.00 "}]
["02.01(140)","DEMOLICIONES, DESMONTAJES Y MECANICA DE SUELOS    ",null,null,null,null,{"$f":"G74","v":"$ 0.00 "}]
["02.02(511)","INSTALACION ELECTRICA EN OBRA EXTERIOR            ",null,null,null,null,{"$f":"G78","v":"$ 0.00 "}]
["08","MURETE DE ACOMETIDA",null,null,null,null,{"$f":"G123","v":"$ 0.00 "}]
["08.01(511)","INSTALACION ELECTRICA EN OBRA EXTERIOR            ",null,null,null,null,{"$f":"G124","v":"$ 0.00 "}]
[]
["IMPORTE CON LETRA (IVA INCLUIDO)",null,null,null,null,"SUBTOTAL M.N.",{"$f":"TEXT(G17,  \"$ #,##0.00 ;\")","v":"$ 0.00 "}]
[{"$f":"UPPER(CONVERTIRNUM(ROUND( G17 * 1.16, 2)))","v":"CERO PESOS 00/100 M.N."},null,null,null,null,"IVA M.N.",{"$f":"TEXT(ROUND( G17 * 0.16, 2),  \"$ #,##0.00 ;\")","v":"$ 0.00 "}]
[null,null,null,null,null,"TOTAL M.N.",{"$f":"TEXT(ROUND( G17 * 1.16, 2),  \"$ #,##0.00 ;\")","v":"$ 0.00 "}]